Cogmind - Beta 13 @@@ ROGUE MODE // 2024.03.13 @ 12:31:29 Player: Oldman Pu Result: Destroyed by D0-3DK(R) with Subdweller Laser Performance ------------- Evolutions (0) 0 Regions Visited (2) 400 Robots Destroyed (28) 140 Value Destroyed (593) 593 Prototype IDs (2) 40 Alien Tech Used (0) 0 Bonus (0) 0 TOTAL SCORE: 1173 Bonus ------- None Cogmind --------- Core Integrity 0/250 Matter 274/300 Energy 200/200 System Corruption 1% Temperature Cool (6) Movement Rolling (90) Location -10/Subcaves Parts ------- > --- POWER (1) -------- Subdweller Power Source > --- PROPULSION (2) --- Wheel Compact Wheel > --- UTILITY (2) ------ Large Storage Unit Weight Redist. System > --- WEAPON (2) ------- Beam Cannon (fused) Assault Rifle > --- INVENTORY (15) --- Subdweller Power Source Wheel Wheel Wheel Heat Sink Heat Sink Huge Storage Unit Medium Laser Medium Laser Medium Laser Peak State ------------ > --- POWER ------------ Subdweller Power Source > --- PROPULSION ------- Wheel Compact Wheel > --- UTILITY ---------- Large Storage Unit Weight Redist. System > --- WEAPON ----------- Beam Cannon Assault Rifle > --- INVENTORY -------- Subdweller Power Source Wheel Wheel Wheel Heat Sink Heat Sink Huge Storage Unit Medium Laser Medium Laser Medium Laser [Rating: 10] Favorites ----------- Power Ion Engine Engine Ion Engine Propulsion Compact Wheel Wheel Compact Wheel Utility Large Storage Unit Device Weight Redist. System Storage Large Storage Unit Protection Light Armor Plating Weapon Assault Rifle Energy Gun Medium Laser Energy Cannon Beam Cannon Ballistic Gun Assault Rifle Build | -11 -10 -10 ------- Run | Yrd Mat Sub Slots Evolved . | . . . Power . | . . . Propulsion . | . . . Utility . | . . . Weapon . | . . . Parts Attached 18 | 6 10 2 Power 3 | 1 1 1 Engine 3 | 1 1 1 Core . | . . . Reactor . | . . . Propulsion 4 | 2 2 . Treads . | . . . Leg . | . . . Wheel 4 | 2 2 . Hover . | . . . Flight . | . . . Utility 4 | 1 3 . Device 1 | . 1 . Storage 2 | 1 1 . Processor . | . . . Hackware . | . . . Protection 1 | . 1 . Artifact . | . . . Weapon 7 | 2 4 1 Energy Gun 1 | 1 . . Energy Cannon 1 | . 1 . Ballistic Gun 5 | 1 3 1 Ballistic Cannon . | . . . Launcher . | . . . Special Weapon . | . . . Impact Weapon . | . . . Slashing Weapon . | . . . Piercing Weapon . | . . . Special Melee Weapon . | . . . Unidentified Prototypes . | . . . Parts Lost 7 | . 5 2 Power 2 | . 1 1 Propulsion 1 | . 1 . Utility 1 | . 1 . Weapon 3 | . 2 1 Highest Loss Streak 2 | . 2 2 To Critical Strikes . | . . . Average Slot Usage (%) 90 | . 89 92 Engine 11 | . 13 7 Wheel 26 | . 26 28 Device 8 | . 5 14 Storage 14 | . 14 14 Energy Gun 1 | . 2 . Energy Cannon 10 | . 8 14 Ballistic Gun 15 | . 16 13 Naked Turns . | . . . Heaviest Build 32 | 14 32 30 Greatest Support 32 | 32 32 32 Greatest Overweight (x) 4 | 4 1 . Average Overweight (x) . | . . . Largest Inventory Capacity 15 | 8 15 15 Average Capacity 14 | 7 14 15 Most Carried 10 | . 10 10 Average Carried 7 | . 7 9 Final Capacity 15 | 8 15 15 Final Carried 10 | . 9 10 Class Distribution -------------------- 56% | Mutant 43% | Scavenger-Mutant Dominant Class ---------------- Mutant | -10/Materials Mutant | -10/Subcaves Resources | -11 -10 -10 ----------- Run | Yrd Mat Sub Matter Collected 648 | 227 373 48 Remotely . | . . . Salvage Created 980 | . 800 180 Parts 63 | . 51 12 Haulers Intercepted 2 | . 2 . Recyclers Shooed 1 | . 1 . Parts Field Recycled . | . . . Retrieved Matter . | . . . Parts Self-Destructed 9 | . . 9 Prevented . | . . . Kills | -11 -10 -10 ------- Run | Yrd Mat Sub Combat Hostiles Destroyed 17 | . 13 4 Guns 10 | . 9 1 Cannons 7 | . 4 3 Classes Destroyed 9 | . 8 1 Worker 2 | . 2 . Builder 1 | . 1 . Hauler 2 | . 2 . Recycler 2 | . 2 . Operator 1 | . 1 . Watcher 3 | . 3 . Swarmer 5 | . 5 . Grunt 10 | . 8 2 Subdweller 2 | . . 2 Best Kill Streak 6 | . 6 2 Combat Bots Only 3 | . 3 2 Max Kills in Single Turn 2 | . 2 1 Gunslinging . | . . . Exploded . | . . . Melee . | . . . Uniques/NPCs Destroyed . | . . . Combat | -11 -10 -10 -------- Run | Yrd Mat Sub Hostile Shots Fired 142 | . 127 15 Missed 39 | . 37 2 Damage Taken 1112 | . 923 189 Core 250 | . 205 45 Absorbed by Shields . | . . . Core Remaining (%) 100 | 100 . . Volleys Fired 89 | . 76 13 Largest 2 | . 2 2 Hottest 80 | . 80 80 Shots Fired 174 | . 149 25 Gun 136 | . 124 12 Cannon 38 | . 25 13 Launcher . | . . . Special . | . . . Kinetic 127 | . 115 12 Thermal 47 | . 34 13 Explosive . | . . . Electromagnetic . | . . . Robot Hit Streak 10 | . 10 4 Robot Miss Streak 5 | . 5 1 Penetration Max . | . . . Secondary Targets 1 | . 1 . Max Gunslinging Chain 1 | . 1 . Shots Hit Robots 102 | . 85 17 Core Hits 39 | . 32 7 Critical Kills . | . . . Critical Parts Destroyed . | . . . Critical Strikes 1 | . 1 . Burn 1 | . 1 . Melee Attacks . | . . . Impact . | . . . Slashing . | . . . Piercing . | . . . Sneak Attacks . | . . . Combat Hostiles . | . . . Follow-up Attacks . | . . . Damage Inflicted 1335 | . 1085 250 Guns 932 | . 821 111 Cannons 403 | . 264 139 Explosions . | . . . Melee . | . . . Ramming . | . . . Kinetic 869 | . 758 111 Thermal 466 | . 327 139 Explosive . | . . . Electromagnetic . | . . . Impact . | . . . Slashing . | . . . Piercing . | . . . Highest Corruption 1 | . 1 1 Average Corruption 1 | . 1 1 Corruption Purged . | . . . Corruption Blocked . | . . . Effects 8 | . 1 7 Message Errors 1 | . . 1 Matter Fused 3 | . . 3 Heat Flow Errors 3 | . 1 2 Parts Fused 1 | . . 1 Overload Shots . | . . . Overflow Damage 17 | . 17 . Projectiles 17 | . 17 . Explosions . | . . . Melee . | . . . Knockbacks . | . . . Impact . | . . . Kinetic . | . . . Secondary . | . . . Self-Inflicted Damage . | . . . Shots . | . . . Rammed . | . . . Targets Rammed . | . . . Kicked . | . . . Crushed . | . . . Highest Temperature 319 | . 319 126 Average Temperature 47 | . 46 65 Received Heat Transfer 390 | . 294 96 Siege Activations . | . . . Robots Corrupted . | . . . Combat Hostiles . | . . . Parts Fried . | . . . Impact Corruptions . | . . . Robots Melted . | . . . Combat Hostiles . | . . . Parts Melted 2 | . 2 . Heat Transferred 1110 | . 814 296 Parts Sabotaged . | . . . Parts Stolen . | . . . Parts Stripped . | . . . Power Chain Reactions . | . . . Alert | -11 -10 -10 ------- Run | Yrd Mat Sub Peak Influence 198 | . 198 . Initial . | . . . Average 91 | . 96 . Maximum Alert Level . | . . . Low Security (%) 100 | 100 100 . Level 1 . | . . . Level 2 . | . . . Level 3 . | . . . Level 4 . | . . . Level 5 . | . . . High Security . | . . . Max Security . | . . . Squads Dispatched 3 | . 3 . Investigation . | . . . Extermination . | . . . Reinforcement 3 | . 3 . Assault . | . . . Garrison . | . . . Intercept . | . . . Searches Triggered . | . . . Construction Impeded . | . . . Haulers Reinforced . | . . . Active Scanning Responses . | . . . Cargo Convoy Interrupts . | . . . Stealth | -11 -10 -10 --------- Run | Yrd Mat Sub Distress Signals . | . . . Communications Jammed . | . . . Distress Signals . | . . . Times Spotted 27 | . 22 5 Peak Tracking Total 6 | . 6 2 Tactical Retreats . | . . . Traps | -11 -10 -10 ------- Run | Yrd Mat Sub Traps Triggered 1 | . 1 . Indirectly . | . . . Trap Hack Attempts . | . . . Triggered . | . . . Disarmed . | . . . Reprogrammed . | . . . Reused . | . . . Traps Extracted . | . . . Installed . | . . . Triggered . | . . . Machines | -11 -10 -10 ---------- Run | Yrd Mat Sub Machines Disabled 1 | . 1 . Max in Single Turn 1 | . 1 . Machines Repaired . | . . . Machines Dismantled . | . . . Machines Sabotaged . | . . . Overloaded Fab Kills . | . . . Hacking | -11 -10 -10 --------- Run | Yrd Mat Sub Machines Accessed 6 | . 6 . Terminals 5 | . 5 . Fabricators . | . . . Repair Stations . | . . . Recycling Units 1 | . 1 . Scanalyzers . | . . . Garrison Access . | . . . Total Hacks 13 | . 13 . Successful 7 | . 7 . Failed 6 | . 6 . Catastrophic 1 | . 1 . Database Lockouts . | . . . Manual . | . . . Terminals 10 | . 10 . Fabricators . | . . . Repair Stations . | . . . Recycling Units 3 | . 3 . Scanalyzers . | . . . Garrison Access . | . . . Terminal Hacks 6 | . 6 . Record 1 | . 1 . Prototype ID Bank 1 | . 1 . Locate Traps 1 | . 1 . Dispatch Records 1 | . 1 . Transport Status 1 | . 1 . Hauler Manifests 1 | . 1 . Fabricator Hacks . | . . . Repair Station Hacks . | . . . Recycling Unit Hacks 1 | . 1 . Report Inventory 1 | . 1 . Scanalyzer . | . . . Garrison Access Hacks . | . . . Unauthorized Hacks . | . . . Terminals . | . . . Fabricators . | . . . Repair Stations . | . . . Recycling Units . | . . . Scanalyzers . | . . . Garrison Access . | . . . Data Cores Recovered . | . . . Used . | . . . Hacking Detections 3 | . 3 . Full Trace Events . | . . . Feedback Events . | . . . Feedback Blocked . | . . . Robot Schematics Acquired . | . . . Robots Built . | . . . Authchips . | . . . Time . | . . . Total Robot Build Rating . | . . . Part Schematics Acquired . | . . . Parts Built . | . . . Authchips . | . . . Time . | . . . Total Part Build Rating . | . . . Parts Repaired . | . . . Time . | . . . Parts Recycled . | . . . Recycled Matter . | . . . Retrieved Matter . | . . . Retrieved Components . | . . . Parts Scanalyzed . | . . . Part Schematics Acquired . | . . . Parts Damaged . | . . . Bothacking | -11 -10 -10 ------------ Run | Yrd Mat Sub Used RIF Installer . | . . . Robots Hacked . | . . . Non-combat . | . . . Combat . | . . . Robot Hacks Applied . | . . . Relay Couplers Released . | . . . Fabnet Peak Effective % . | . . . Robots Rewired . | . . . Allies Hacked . | . . . Hacks Repelled . | . . . Allies | -11 -10 -10 -------- Run | Yrd Mat Sub Total Allies . | . . . Largest Group . | . . . Highest-Rated Group . | . . . Highest-Rated Ally . | . . . Total Orders . | . . . Ally Attacks . | . . . Total Damage . | . . . Kills . | . . . Allies Corrupted . | . . . Allies Melted . | . . . Intel | -11 -10 -10 ------- Run | Yrd Mat Sub Robot Analysis Total . | . . . Derelict Logs Recovered 1 | . . 1 Drone Launches . | . . . Drone Recoveries . | . . . Exploration | -11 -10 -10 ------------- Run | Yrd Mat Sub Turns Passed 1588 | 52 1048 488 Spaces Moved 1025 | 37 653 335 Core 12 | 12 . . Treads . | . . . Legs . | . . . Wheels 1013 | 25 653 335 Hover . | . . . Flight . | . . . Fastest Speed 50 | 50 90 90 Average Speed 95 | 117 97 90 Slowest Speed 250 | 250 115 90 Overloaded Moves . | . . . Propulsion Burnouts . | . . . Robots Hopped . | . . . Cave-ins Triggered . | . . . Exploration Rate (%) 41 | 4 99 22 Regions Visited 2 Branch Regions 1 Pre-discovered Areas . | . . . Known Exits Taken . | . . . Unknown Exits Taken 2 | 1 1 . Scrap Searched . | . . . Spaces Dug . | . . . Terrain Destroyed . | . . . Melee . | . . . Projectile . | . . . AOE . | . . . Terrain Rammed . | . . . Walls Destroyed . | . . . Machines Disabled . | . . . Actions | -11 -10 -10 --------- Run | Yrd Mat Sub Total 1457 | 42 919 496 Wait 310 | . 166 144 Move 1023 | 36 652 335 Hop . | . . . Pick Up 14 | . 12 2 Fast Attach 12 | 6 5 1 Attach 3 | . 2 1 Detach . | . . . Swap 3 | . 3 . Drop 3 | . 3 . Fire 89 | . 76 13 Melee . | . . . Ram . | . . . Kick . | . . . Crush . | . . . Escape Stasis . | . . . Rewire . | . . . Trap . | . . . Miscellaneous . | . . . Route ------- -11/Scrapyard -10/Materials (discovered 6 exits: [*Mat x3] / [*Min x2] / [*Sub]) -10/Subcaves History --------- Turn | Location | Event 19 | -11/Scrapyard | Discovered new exit (range 16) 53 | -11/Scrapyard | Entered Materials 146 | -10/Materials | Discovered new exit (range 16) 311 | -10/Materials | Build established: Mutant 346 | -10/Materials | Core integrity fell below 50% 401 | -10/Materials | Discovered new exit (range 16) 509 | -10/Materials | Discovered new exit (range 10) 714 | -10/Materials | Core integrity fell below 20% 732 | -10/Materials | Discovered new exit (range 16) 875 | -10/Materials | Discovered new exit (range 16) 948 | -10/Materials | Build established: Scavenger-Mutant 1090 | -10/Materials | Discovered new exit (range 8) 1101 | -10/Materials | Entered Subcaves 1534 | -10/Subcaves | A swath of the cavern ceiling suddenly collapsed 1589 | -10/Subcaves | Destroyed by D0-3DK(R) with Subdweller Laser Last Messages --------------- 01240_ Particle Gun fries itself beyond repair. 01242_ Acquired Heat Sink. 01244_ Aluminum Leg fries itself beyond repair. 01244_ Sml. Laser fries itself beyond repair. 01244_ Acquired 20 matter. 01253_ Aluminum Leg fries itself beyond repair. 01267_ System corrupted: Matter fused (-8). 01393_ System corrupted: Heat flow error (+110). 01431_ System corrupted: Beam Cannon fused. 01455_ Acquired Sub. Power Source. A swath of the cavern ceiling suddenly collapses. 01542_ Acquired 15 matter. 01545_ System corrupted: Matter fused (-10). 01549_ Acquired 4 matter. 01565_ BY-S8Y(u) tweaks Twisted Machinery. 01566_ 5D-LXH(R) destroyed. 01567_ YW-9J2(z): "She is not going to be happy we haven't found any suitable candidates yet." 01568_ IF-1QK(O) collects matter. 01572_ Acquired Sub. Power Source. Map ----- +----------------------------------------------------+ | ?????????????????????????????????????????????????? | | ?????????????????????????????????????????????????? | | ?????????????????????????????????????????????????? | | ?????????????????????????????????????????????????? | | ?????????????????????????????????????????????????? | | ?????????????????????????????????????????????????? | | ?????????????????????????????????????????????????? | | ?????????????????????????????????????????????????? | | ?????????????????????????????????????????????????? | | ?????????????????????????????????????????????????? | | ?????????????????????????????????????????????????? | | ?????????????????????????????????????????????????? | | ?????????????????????????????????????????????????? | | ?????????????????????????????????????????????????? | | ???????????????????????????? ????????????????????? | | ?????????????????????????""" ?????????????????? | | ?????????????????????#???#"""" ??????????????????? | | ?????????????????????# ??# """???????????????????? | | ?????????????????#####="## " #???????????????????? | | ?????????????????#""# "#""" ????????????????????? | | ??????????????????""" ? #????????????????????? | | ??????????????????#" #??# #????????????????????? | | ?????????????????## #### ##??????? ###????????? | | ?????????????????# # # ###??? ##???????? | | ????????????#?????## ## #???????? | | ?????????????$?#?## @ R #???????? | | ?????????????? ?# ## # # # # ### #???????? | | ??????????????# ?# ##### ##### #??????????????? | | ??????????????#%### #??## ##????? #??????????????? | | ???????????????# #???###?????? ??????????????? | | ???????????????# ###????????????? ?????????????? | | ???????###???### ##???????????????" ????????????? | | ??????## ##### ##?????????????????" ???????????? | | ?????## # ###?????????????????? " ??????????? | | ????## ########????????????????????? ##??????????? | | ???## ##?????????????????????????????????????????? | | #### ##??????????????????????????????????????????? | | ##???????????????????????????????????????????? | | #????????????????????????????????????????????? | | # #????????????????????????????????????????????? | | #????????????????????????????????????????????? | | #????????????????????????????????????????????? | | ##????????????????????????????????????????????? | | ####?????????????????????????????????????????????? | | ?????????????????????????????????????????????????? | | ?????????????????????????????????????????????????? | | ?????????????????????????????????????????????????? | | ?????????????????????????????????????????????????? | | ?????????????????????????????????????????????????? | | ?????????????????????????????????????????????????? | +----------------------------------------------------+ Best States ------------- Heat Dissipation 25 Energy Generation 15 Energy Capacity 250 Matter Stores 300 Matter Capacity 300 Sight Range 16 Terrain Scan Density 10 Additional Mass Support 6 Armor Coverage 150 Evasion (%) 42 Item Schematics ----------------- None Robot Schematics ------------------ None Fabricated ------------ Nothing Alien Tech Used ----------------- None Achievements -------------- None Challenges ------------ None Game ------ Seed RecyclingWarpFalx Manual? 0 Play Time 00:18:29 Cumulative 153.5 hours Start 2024.03.11 @ 17:29:23 End 2024.03.13 @ 12:31:29 Sessions 2 Manual Loads 0 Difficulty Rogue Special Mode None Game No. 102 Rogue 90 Adventurer 12 Explorer 0 Win Type - Total 1 Types 1/0/0/0/0/0/0/0/0 Lore% 23 Gallery% 38 Achievement% 30 Wizard Run 0 Options --------- Layout 1 ASCII 0 Keyboard 0 Movement Mouse Keybinds 0 Fullscreen 1 Font 32/SmallcapsGlow Map View 77x35 Zoom Use 0% Tactical HUD 1 Map Filters NONE Filters NONE Steam 1 RUN: 16edc82c-8205-401e-ad85-bea410f78253